Workbook

Sheet Cover
E1: THE REPUBLIC OF THE GAMBIA
D3: The Gambia National Accounts Statistics Annual Bulletin
E25: July 2024
A33: GAMBIA BUREAU OF STATISTICS, GBoS
A34: https://www.gbosdata.org/

Sheet Content
A2: TABLE OF CONTENTS
A5: Table 1.1: Expenditure on Gross Domestic Product (GDP) at Current Market Prices
A7: Table 1.2: Expenditure on Gross Domestic Product (GDP) at Constant 2013 Prices
A9: Table 1.3: Contribution of Expenditure on Gross Domestic Product (in percent)
A11: Table 1.4: Real Growth Rates on Expenditure of Gross Domestic Product at Constant 2013 Prices
A13: Table 1.5: GDP Expenditure Deflator

Sheet Tab1.1_2013_GDP_E_Current
A1: Table 1.1: GDP by Expenditure, base year 2013
A2: CURRENT PRICES (D'000)
C3: 2004 | D3: 2005 | E3: 2006 | F3: 2007 | G3: 2008 | H3: 2009 | I3: 2010 | J3: 2011 | K3: 2012 | L3: 2013 | M3: 2014 | N3: 2015* | O3: 2016* | P3: 2017* | Q3: 2018* | R3: 2019* | S3: 2020* | T3: 2021* | U3: 2022* | V3: 2023* | W3: 2024*
A5: No | B5: Gross Domestic Product - Production | C5: 28885956.43 | D5: 29367002.97 | E5: 29584431.16 | F5: 31830608.04 | G5: 34659278.88 | H5: 38638120.47 | I5: 43230706.49 | J5: 41531716.06 | K5: 45389296.62 | L5: 49463596.58 | M5: 51309079.34 | N5: 58581061.6 | O5: 64389939.27 | P5: 70142188.25 | Q5: 80445799.94 | R5: 90793764.45 | S5: 93329809.13 | T5: 105487037.5 | U5: 121093207.4 | V5: 140475119.7 | W5: 160504146.9
A7: 1 | B7: Total Final Consumption Expenditure | C7: 27019017 | D7: 26238018.29 | E7: 27425801.92 | F7: 28255785.77 | G7: 32198015.32 | H7: 38587783 | I7: 42462467.37 | J7: 39080731.23 | K7: 42567187.94 | L7: 46900462.75 | M7: 49390434.34 | N7: 52715813.22 | O7: 56295967.48 | P7: 65856705.23 | Q7: 76683770.88 | R7: 85935964.62 | S7: 90281050.77 | T7: 106167568.1 | U7: 120987692.4 | V7: 138855750.2 | W7: 152826089.3
A8: 1.1 | B8: Government | C8: 2507984.859 | D8: 2665294.22 | E8: 2856186.546 | F8: 2332769.763 | G8: 2377674.307 | H8: 3135859.461 | I8: 3682798.284 | J8: 3852727.534 | K8: 4117573.695 | L8: 4587634.66 | M8: 4534079.866 | N8: 4877798.564 | O8: 5438771.587 | P8: 5517984.334 | Q8: 5490248.859 | R8: 7484024.91 | S8: 8392313.828 | T8: 10293464.32 | U8: 10126374.89 | V8: 17921806 | W8: 22642328.83
A9: 1.2 | B9: Households | C9: 23837001.14 | D9: 22863042.52 | E9: 23798245.32 | F9: 25116206.55 | G9: 28972053.72 | H9: 34541972.18 | I9: 37806587.83 | J9: 34207874.78 | K9: 37382031.14 | L9: 41127760.91 | M9: 43587518.05 | N9: 46488660.92 | O9: 49376744.86 | P9: 58810620.03 | Q9: 69621608.29 | R9: 76710991.74 | S9: 80031609.34 | T9: 93708688.87 | U9: 108248526.8 | V9: 117646791.6 | W9: 126796642.9
A10: 1.3 | B10: NPISH | C10: 674030.9991 | D10: 709681.5408 | E10: 771370.0547 | F10: 806809.4514 | G10: 848287.2949 | H10: 909951.3543 | I10: 973081.2535 | J10: 1020128.925 | K10: 1067583.108 | L10: 1185067.171 | M10: 1268836.418 | N10: 1349353.736 | O10: 1480451.034 | P10: 1528100.868 | Q10: 1571913.728 | R10: 1740947.972 | S10: 1857127.6 | T10: 2165414.95 | U10: 2612790.766 | V10: 3287152.658 | W10: 3387117.533
A11: 2 | B11: Gross Fixed Capital Formation | C11: 5022023.995 | D11: 4631666.742 | E11: 5002406.927 | F11: 5048264.535 | G11: 4890550.818 | H11: 5149595.118 | I11: 5114406.898 | J11: 5679249.866 | K11: 6469303.158 | L11: 7276853.356 | M11: 8544303.474 | N11: 11921136.62 | O11: 16045930.49 | P11: 16104456.85 | Q11: 16795815.41 | R11: 22384152.28 | S11: 30184777.94 | T11: 32037246.88 | U11: 34661294.86 | V11: 40031052.97 | W11: 48763296.77
A12: 2.1 | B12: Total Construction | C12: 3049489.455 | D12: 2276053.764 | E12: 2412405.18 | F12: 2309562.049 | G12: 2622882.546 | H12: 2825841.197 | I12: 3079884.321 | J12: 3511215.961 | K12: 4125489.882 | L12: 4556834.22 | M12: 5771314.617 | N12: 9206551.007 | O12: 13239793.54 | P12: 13013277.9 | Q12: 13574940.19 | R12: 17818258.65 | S12: 20726893.77 | T12: 25559266.12 | U12: 27234976.33 | V12: 33119304.25 | W12: 40274986.88
A13: 2.1.1 | B13: Construction- Govt. | L13: 2508844.982 | M13: 2512374.749 | N13: 2859540.598 | O13: 4588769 | P13: 4674374.497 | Q13: 4735753.85 | R13: 6013074.341 | S13: 5552006.973 | T13: 10926074.16 | U13: 11642406.7 | V13: 14157838.99 | W13: 17216749.94
A14: 2.1.2 | B14: Construction-Private | L14: 2047989.238 | M14: 3258939.869 | N14: 6347010.409 | O14: 8651024.542 | P14: 8338903.406 | Q14: 8839186.34 | R14: 11805184.31 | S14: 15174886.8 | T14: 14633191.96 | U14: 15592569.63 | V14: 18961465.27 | W14: 23058236.94
A15: 2.2 | B15: Machinery and Equipment | C15: 1175396.976 | D15: 1504943.688 | E15: 1634826.33 | F15: 1806210.035 | G15: 1280583.737 | H15: 1289109.573 | I15: 1017175.634 | J15: 1348224.81 | K15: 1728579.465 | L15: 1835101.865 | M15: 1875391.524 | N15: 1859275.137 | O15: 1912062.539 | P15: 2176432.362 | Q15: 2314017.724 | R15: 3637380.27 | S15: 8330870.119 | T15: 5085487.385 | U15: 6369720.223 | V15: 5718731.959 | W15: 6491703.102
A16: 2.3 | B16: Livestock | C16: 797137.5642 | D16: 850669.2899 | E16: 955175.4172 | F16: 932492.4506 | G16: 987084.5347 | H16: 1034644.348 | I16: 1017346.943 | J16: 819809.0957 | K16: 615233.8111 | L16: 884917.2717 | M16: 897597.3329 | N16: 855310.4733 | O16: 894074.4087 | P16: 914746.5889 | Q16: 906857.4965 | R16: 928513.3593 | S16: 1127014.049 | T16: 1392493.37 | U16: 1056598.309 | V16: 1193016.757 | W16: 1996606.783
A17: 3=4.1-4.2 | B17: Net Export | C17: -2170466.44 | D17: -2370472.74 | E17: -3237292 | F17: -2453569 | G17: -2300562 | H17: -4532095.667 | I17: -3130618 | J17: -3684779.077 | K17: -3802545 | L17: -3711545.745 | M17: -7482987.9 | N17: -7838541.927 | O17: -8114947.12 | P17: -13167168.66 | Q17: -16279096.11 | R17: -14223868.38 | S17: -26300557.1 | T17: -30447054.17 | U17: -33400195.18 | V17: -37711383.5 | W17: -40186063.34
A18: 4.1 | B18: Exports of Goods and Services | C18: 5262044 | D18: 5330329 | E18: 5639638 | F18: 6488186 | G18: 5680968 | H18: 4598117.5 | I18: 5697762 | J18: 7005119.333 | K18: 8794970 | L18: 9387777.333 | M18: 11204310 | N18: 9121568.448 | O18: 8213345.524 | P18: 12962791.81 | Q18: 17929904.5 | R18: 18309371.8 | S18: 8966795.713 | T18: 6980430.365 | U18: 10377507 | V18: 10287409.07 | W18: 14249685.54
A19: 4.1.1 | B19: Exports of Goods | C19: 3207324 | D19: 2981129 | E19: 3055348 | F19: 3310446 | G19: 3067075.5 | H19: 1825370 | I19: 2065020 | J19: 3012485 | K19: 4028170 | L19: 4730960 | M19: 5151300 | N19: 4570260.708 | O19: 3996624.215 | P19: 6497001.818 | Q19: 7799738.134 | R19: 7851176.385 | S19: 3575642.928 | T19: 1631413.186 | U19: 2859591.346 | V19: 4373975.7 | W19: 4525461.879
A20: 4.1.2 | B20: Exports of Services | C20: 2054720 | D20: 2349200 | E20: 2584290 | F20: 3177740 | G20: 2613892.5 | H20: 2772747.5 | I20: 3632742 | J20: 3992634.333 | K20: 4766800 | L20: 4656817.333 | M20: 6053010 | N20: 4551307.74 | O20: 4216721.31 | P20: 6465789.989 | Q20: 10130166.36 | R20: 10458195.41 | S20: 5391152.785 | T20: 5349017.179 | U20: 7517915.653 | V20: 5913433.374 | W20: 9724223.664
A21: 4.2 | B21: Imports of Goods and Services | C21: -7432510.44 | D21: -7700801.74 | E21: -8876930 | F21: -8941755 | G21: -7981530 | H21: -9130213.167 | I21: -8828380 | J21: -10689898.41 | K21: -12597515 | L21: -13099323.08 | M21: -18687297.9 | N21: -16960110.38 | O21: -16328292.64 | P21: -26129960.47 | Q21: -34209000.61 | R21: -32533240.18 | S21: -35267352.81 | T21: -37427484.54 | U21: -43777702.18 | V21: -47998792.57 | W21: -54435748.88
A22: 4.2.1 | B22: Imports of Goods (FOB) | C22: -6089190.68 | D22: -6361116.78 | E22: -6236628.96 | F22: -6809173.52 | G22: -6083097.41 | H22: -6928519.34 | I22: -6796609.9 | J22: -8613775.56 | K22: -10419920.2 | L22: -10755555.68 | M22: -13832237.1 | N22: -14213354 | O22: -13606361.57 | P22: -21903910.43 | Q22: -28640176.04 | R22: -27065936.03 | S22: -29695625.78 | T22: -31301400.52 | U22: -36047504.36 | V22: -38763603.77 | W22: -43537705.48
A23: 4.2.2 | B23: Imports of Services | C23: -1343319.76 | D23: -1339684.96 | E23: -2640301.04 | F23: -2132581.48 | G23: -1898432.59 | H23: -2201693.827 | I23: -2031770.1 | J23: -2076122.85 | K23: -2177594.8 | L23: -2343767.398 | M23: -4855060.8 | N23: -2746756.378 | O23: -2721931.079 | P23: -4226050.038 | Q23: -5568824.57 | R23: -5467304.142 | S23: -5571727.029 | T23: -6126084.017 | U23: -7730197.827 | V23: -9235188.807 | W23: -10898043.41
A24: 5 | B24: Statistical discrepancies and Changes in inventories | C24: -984618.1208 | D24: 867790.6871 | E24: 393514.3122 | F24: 980126.7335 | G24: -128725.2555 | H24: -567161.9861 | I24: -1215549.778 | J24: 456514.0378 | K24: 155350.5222 | L24: -1002173.777 | M24: 857329.4297 | N24: 1782653.686 | O24: 162988.4197 | P24: 1348194.822 | Q24: 3245309.759 | R24: -3302484.077 | S24: -835462.4808 | T24: -2270723.324 | U24: -1155584.755 | V24: -700300.0294 | W24: -899175.8719
A25: 6=1+2+3+5 | B25: GDP By Expenditure | C25: =C7+C11+C17+C24 -> 28885956.43 | D25: 29367002.97 | E25: 29584431.16 | F25: 31830608.04 | G25: 34659278.88 | H25: 38638120.47 | I25: 43230706.49 | J25: 41531716.06 | K25: 45389296.62 | L25: =L7+L11+L17+L24 -> 49463596.58 | M25: =M7+M11+M17+M24 -> 51309079.34 | N25: 58581061.6 | O25: 64389939.27 | P25: 70142188.25 | Q25: 80445799.94 | R25: 90793764.45 | S25: 93329809.13 | T25: =T7+T11+T17+T24 -> 105487037.5 | U25: 122248792.1 | V25: 141175419.7 | W25: 161403322.7
B27: 2015* - 2024* Balance of Payment Manual Six (BPM6) was used to compile the Trade Balance

Sheet Tab 1.2_2013_GDP_E_Constant
B1: Table 1.2: GDP by Expenditure, base year 2013
B2: CONSTANT PRICES (D'000)
C3: 2004 | D3: 2005 | E3: 2006 | F3: 2007 | G3: 2008 | H3: 2009 | I3: 2010 | J3: 2011 | K3: 2012 | L3: 2013 | M3: 2014 | N3: 2015* | O3: 2016* | P3: 2017* | Q3: 2018* | R3: 2019* | S3: 2020* | T3: 2021* | U3: 2022* | V3: 2023* | W3: 2024*
A5: No | B5: Gross Domestic Product - Production | C5: 41405087.54 | D5: 40431351.89 | E5: 40206723.03 | F5: 41430313.89 | G5: 44022155.22 | H5: 46956550.69 | I5: 49730901.42 | J5: 45687558.19 | K5: 48082303.22 | L5: 49463596.58 | M5: 48767454.57 | N5: 50746473.89 | O5: 51732660.42 | P5: 54227525.51 | Q5: 58150827.55 | R5: 61769002.85 | S5: 62134358.7 | T5: 65400121.2 | U5: 68992548.72 | V5: 72468558.7 | W5: 76333749
A7: 1 | B7: Total Final Consumption Expenditure | C7: 37501306.76 | D7: 37178621.86 | E7: 37912606.11 | F7: 38838701.88 | G7: 40939574.63 | H7: 47258039.04 | I7: 49809387.53 | J7: 43201359.52 | K7: 45119734.59 | L7: 46900462.75 | M7: 46803991.17 | N7: 47201376.39 | O7: 47611022.82 | P7: 51447763.16 | Q7: 56185013.08 | R7: 58912755.47 | S7: 59811433.57 | T7: 63149357.75 | U7: 64478375.47 | V7: 69376305.56 | W7: 72964577.62
A8: 1.1 | B8: Government | C8: 3685875.582 | D8: 3797148.553 | E8: 3987110.892 | F8: 3090510.4 | G8: 3015981.239 | H8: 3804073.797 | I8: 4252937.843 | J8: 4245548.213 | K8: 4352239.569 | L8: 4587634.66 | M8: 4279533.255 | N8: 4310478.354 | O8: 4482197.724 | P8: 4209295.691 | Q8: 4365521.595 | R8: 5003524.799 | S8: 6569649.91 | T8: 6050535.754 | U8: 5893386.115 | V8: 10326931.41 | W8: 12917820.34
A9: 1.2 | B9: Households | C9: 33047607.98 | D9: 32591656.95 | E9: 33086054.29 | F9: 34882076.12 | G9: 37018835.06 | H9: 42499714 | I9: 44544931.42 | J9: 37909588.94 | K9: 39683099.85 | L9: 41127760.91 | M9: 41264219.59 | N9: 41612962.77 | O9: 41771450.83 | P9: 45868791.37 | Q9: 50444342.88 | R9: 52436869.9 | S9: 51808997 | T9: 55755893.1 | U9: 56996382.8 | V9: 57089936.64 | W9: 58067320.49
A10: 1.3 | B10: NPISH | C10: 767823.1996 | D10: 789816.3534 | E10: 839440.9295 | F10: 866115.367 | G10: 904758.326 | H10: 954251.2392 | I10: 1011518.267 | J10: 1046222.363 | K10: 1084395.172 | L10: 1185067.171 | M10: 1260238.324 | N10: 1277935.273 | O10: 1357374.269 | P10: 1369676.096 | Q10: 1375148.605 | R10: 1472360.775 | S10: 1432786.661 | T10: 1342928.895 | U10: 1588606.549 | V10: 1959437.511 | W10: 1979436.797
A11: 2 | B11: Gross Fixed Capital Formation | C11: 7114468.731 | D11: 6308669.865 | E11: 6532666.198 | F11: 6616376.356 | G11: 6369404.873 | H11: 6536446.855 | I11: 6093679.002 | J11: 6482550.796 | K11: 6963056.625 | L11: 7276853.356 | M11: 7421595.567 | N11: 9877893.031 | O11: 13185563.38 | P11: 13020830.87 | Q11: 13280504.07 | R11: 17084436.74 | S11: 24613614.05 | T11: 22464885.59 | U11: 23273032.08 | V11: 25053971.1 | W11: 27485429.48
A12: 2.1 | B12: Total Construction | C12: 4464186.569 | D12: 3229939.491 | E12: 3354474.398 | F12: 3047061.711 | G12: 3314101.505 | H12: 3413524.55 | I12: 3543238.483 | J12: 3869216.423 | K12: 4360606.909 | L12: 4556834.22 | M12: 5020990.387 | N12: 7537987.609 | O12: 10836001.98 | P12: 10721663.97 | Q12: 11120150.94 | R12: 13745991.76 | S12: 16649889.65 | T12: 18528694.16 | U12: 18343407.21 | V12: 19260577.57 | W12: 20223606.45
A13: 2.1.1 | B13: Construction- Govt. | L13: 2508844.982 | M13: 2185742.816 | N13: 2341287.37 | O13: 3755640.888 | P13: 3851225.88 | Q13: 3879376.033 | R13: 4638818.638 | S13: 4459920.741 | T13: 7920645.508 | U13: 7841439.053 | V13: 8233511.006 | W13: 8645186.556
A14: 2.1.2 | B14: Construction-Private | L14: 2047989.238 | M14: 2835247.571 | N14: 5196700.239 | O14: 7080361.094 | P14: 6870438.094 | Q14: 7240774.905 | R14: 9107173.119 | S14: 12189968.91 | T14: 10608048.65 | U14: 10501968.16 | V14: 11027066.57 | W14: 11578419.9
A15: 2.2 | B15: Machinery and Equipment | C15: 1594969.53 | D15: 1967144.572 | E15: 2004607.034 | F15: 2451991.191 | G15: 1912584.976 | H15: 1974583.409 | I15: 1405222.968 | J15: 1721314.086 | K15: 1957810.537 | L15: 1835101.865 | M15: 1592918.885 | N15: 1647197.165 | O15: 1748572.695 | P15: 1740979.522 | Q15: 1660079.985 | R15: 2862072.586 | S15: 7485932.875 | T15: 3345715.385 | U15: 4309689.283 | V15: 5171627.139 | W15: 6205952.567
A16: 2.3 | B16: Livestock | C16: 1055312.632 | D16: 1111585.803 | E16: 1173584.766 | F16: 1117323.453 | G16: 1142718.393 | H16: 1148338.895 | I16: 1145217.551 | J16: 892020.2865 | K16: 644639.1788 | L16: 884917.2717 | M16: 807686.2959 | N16: 692708.257 | O16: 600988.7042 | P16: 558187.3711 | Q16: 500273.1444 | R16: 476372.4016 | S16: 477791.5288 | T16: 590476.0538 | U16: 619935.5865 | V16: 621766.3851 | W16: 1055870.463
A17: 3=4.1-4.2 | B17: Net Export | C17: -2195250.268 | D17: -2294998.61 | E17: -2881595.496 | F17: -2715945.506 | G17: -3761544.659 | H17: -7291858.941 | I17: -4637530.244 | J17: -5267408.788 | K17: -4515453.923 | L17: -3711545.745 | M17: -5768319.147 | N17: -6998656.089 | O17: -7835976.341 | P17: -10592967.5 | Q17: -10992918.03 | R17: -11827619.2 | S17: -21506955.59 | T17: -18994534.11 | U17: -18143878.33 | V17: -20498000.24 | W17: -23997436.85
A18: 4.1 | B18: Exports of Goods and Services | C18: 8497034.454 | D18: 8225337.29 | E18: 8533861.442 | F18: 9716856.327 | G18: 8034085.178 | H18: 6384538.17 | I18: 7391801.083 | J18: 8247999.828 | K18: 9776300.558 | L18: 9387777.333 | M18: 10406556.06 | N18: 7965166.148 | O18: 6960626.377 | P18: 10515896.58 | Q18: 14143393.93 | R18: 13247497.73 | S18: 6631821.31 | T18: 4854272.9 | U18: 5292331.845 | V18: 6345969.15 | W18: 7456789.845
A19: 4.1.1 | B19: Exports of Goods | C19: 4846856.099 | D19: 4394740.403 | E19: 4317471.967 | F19: 4587191.78 | G19: 3951119.367 | H19: 2256096.246 | I19: 2434764.995 | J19: 3321599.167 | K19: 4263301.824 | L19: 4730960 | M19: 4908140.646 | N19: 4045142.651 | O19: 3302352.769 | P19: 4988857.82 | Q19: 5695908.933 | R19: 5100140.6 | S19: 2339559.489 | T19: 962972.3617 | U19: 1620776.665 | V19: 2909625.688 | W19: 2368151.78
A20: 4.1.2 | B20: Exports of Services | C20: 3650178.355 | D20: 3830596.887 | E20: 4216389.475 | F20: 5129664.547 | G20: 4082965.811 | H20: 4128441.924 | I20: 4957036.087 | J20: 4926400.661 | K20: 5512998.734 | L20: 4656817.333 | M20: 5498415.415 | N20: 3920023.497 | O20: 3658273.608 | P20: 5527038.756 | Q20: 8447484.994 | R20: 8147357.134 | S20: 4292261.821 | T20: 3891300.538 | U20: 3671555.18 | V20: 3436343.462 | W20: 5088638.065
A21: 4.2 | B21: Imports of Goods and Services | C21: -10692284.72 | D21: -10520335.9 | E21: -11415456.94 | F21: -12432801.83 | G21: -11795629.84 | H21: -13676397.11 | I21: -12029331.33 | J21: -13515408.62 | K21: -14291754.48 | L21: -13099323.08 | M21: -16174875.21 | N21: -14963822.24 | O21: -14796602.72 | P21: -21108864.08 | Q21: -25136311.96 | R21: -25075116.93 | S21: -28138776.9 | T21: -23848807.01 | U21: -23436210.18 | V21: -26843969.39 | W21: -31454226.69
A22: 4.2.1 | B22: Imports of Goods (FOB) | C22: -8262802.948 | D22: -8314753.862 | E22: -7647289.532 | F22: -9243683.274 | G22: -9085263.522 | H22: -10612704.79 | I22: -9389482.03 | J22: -10997433.88 | K22: -11801730.83 | L22: -10755555.68 | M22: -11748816.94 | N22: -12592109.66 | O22: -12442957.18 | P22: -17521454 | Q22: -20546507.71 | R22: -20539162.61 | S22: -23702747.69 | T22: -19392206.25 | U22: -19180831.2 | V22: -21477327.26 | W22: -25751334.57
A23: 4.2.2 | B23: Imports of Services | C23: -2429481.773 | D23: -2205582.037 | E23: -3768167.405 | F23: -3189118.559 | G23: -2710366.316 | H23: -3063692.322 | I23: -2639849.296 | J23: -2517974.734 | K23: -2490023.651 | L23: -2343767.398 | M23: -4426058.273 | N23: -2371712.576 | O23: -2353645.533 | P23: -3587410.071 | Q23: -4589804.25 | R23: -4535954.325 | S23: -4436029.205 | T23: -4456600.761 | U23: -4255378.974 | V23: -5366642.131 | W23: -5702892.12
A24: 5 | B24: Statistical discrepancies and Changes in inventories | C24: -1015437.681 | D24: -760941.2258 | E24: -1356953.787 | F24: -1308818.841 | G24: 474720.3844 | H24: 453923.7418 | I24: -1534634.867 | J24: 1271056.662 | K24: 514965.9186 | L24: -1002173.777 | M24: 310186.9789 | N24: 665860.5566 | O24: -1227949.436 | P24: 351898.9821 | Q24: -321771.5718 | R24: -2400570.16 | S24: -783733.3301 | T24: -1219588.025 | U24: -614980.5006 | V24: -1463717.717 | W24: -118821.2614
A25: 6=1+2+3+5 | B25: GDP By Expenditure | C25: =C7+C11+C17+C24 -> 41405087.54 | D25: =D7+D11+D17+D24 -> 40431351.89 | E25: 40206723.03 | F25: 41430313.89 | G25: 44022155.22 | H25: 46956550.69 | I25: 49730901.42 | J25: 45687558.19 | K25: 48082303.22 | L25: 49463596.58 | M25: 48767454.57 | N25: 50746473.89 | O25: 51732660.42 | P25: 54227525.51 | Q25: 58150827.55 | R25: 61769002.85 | S25: 62134358.7 | T25: 65400121.2 | U25: 68992548.72 | V25: 72468558.7 | W25: 76333749
A28: 2015* - 2024* Balance of Payment Manual Six (BPM6) was used to compile the Trade Balance

Sheet Tab1.3_2013_GDP_E_Contribution
A1: Table 1.3: Contribution of Expenditure on Gross Domestic Product (in percent)
A3: No. | B3: Description | C3: 2004 | D3: 2005 | E3: 2006 | F3: 2007 | G3: 2008 | H3: 2009 | I3: 2010 | J3: 2011 | K3: 2012 | L3: 2013 | M3: 2014 | N3: 2015* | O3: 2016* | P3: 2017* | Q3: 2018* | R3: 2019* | S3: 2020* | T3: 2021* | U3: 2022* | V3: 2023* | W3: 2024*
A4: 1 | B4: Final Consumption Expenditure | C4: 90.45362335 | D4: 92.06576666 | E4: 93.95320491 | F4: 91.58944877 | G4: 92.55493702 | H4: 98.42495854 | I4: 95.53665693 | J4: 95.14434332 | K4: 94.10452019 | L4: 92.9351963 | M4: 97.8963751 | N4: 92.81213182 | O4: 87.65162714 | P4: 95.73031301 | Q4: 99.33067873 | R4: 91.32772663 | S4: 95.8751026 | T4: 98.52428939 | U4: 98.96841543 | V4: 95.73297276 | W4: 95.58626241
A5: 1.1 | B5: Households Final Consumption Expenditures | C5: 79.80094624 | D5: 80.22341914 | E5: 81.52620024 | F5: 81.4126895 | G5: 83.28173586 | H5: 88.10540321 | I5: 85.06135501 | J5: 83.2810871 | K5: 82.64154327 | L5: 81.49635015 | M5: 86.39446229 | N5: 81.84852821 | O5: 76.87854429 | P5: 85.4880159 | Q5: 90.18285782 | R5: 81.52396396 | S5: 84.99057877 | T5: 86.96235717 | U5: 88.54772707 | V5: 83.33376435 | W5: 78.5588802
A6: 1.2 | B6: General Government final consumption | C6: 8.39617214 | D6: 9.35216803 | E6: 9.784504408 | F6: 7.561534424 | G6: 6.834753432 | H6: 7.998563624 | I6: 8.285958352 | J6: 9.379692233 | K6: 9.102839903 | L6: 9.090586803 | M6: 8.986962542 | N6: 8.587914244 | O6: 8.468051986 | P6: 8.021026341 | Q6: 7.111676165 | R6: 7.953584789 | S6: 8.91232371 | T6: 9.552411113 | U6: 8.283415084 | V6: 12.69470708 | W6: 14.02841555
A7: 1.3 | B7: NPISH final consumption | C7: 2.256504969 | D7: 2.490179496 | E7: 2.642500264 | F7: 2.615224844 | G7: 2.438447724 | H7: 2.320991707 | I7: 2.189343569 | J7: 2.483563988 | K7: 2.360137022 | L7: 2.348259351 | M7: 2.514950265 | N7: 2.375689364 | O7: 2.305030855 | P7: 2.221270771 | Q7: 2.03614475 | R7: 1.850177876 | S7: 1.97220012 | T7: 2.009521108 | U7: 2.137273278 | V7: 2.328417132 | W7: 2.09854263
A8: 2 | B8: Gross Fixed Capital Formation | C8: 16.81261265 | D8: 16.25191144 | E8: 17.13686128 | F8: 16.36364919 | G8: 14.05815292 | H8: 13.13495222 | I8: 11.50694643 | J8: 13.82646849 | K8: 14.30187661 | L8: 14.41938428 | M8: 16.93559389 | N8: 20.98850488 | O8: 24.98317338 | P8: 23.40968456 | Q8: 21.75609944 | R8: 23.78857035 | S8: 32.05510633 | T8: 29.73080233 | U8: 28.35307757 | V8: 28.35554026 | W8: 30.21207739
A9: 2.1 | B9: Total Construction | C9: 10.20900837 | D9: 7.986374293 | E9: 8.264232305 | F9: 7.486307998 | G9: 7.539617782 | H9: 7.207807267 | I9: 6.929457236 | J9: 8.548262181 | K9: 9.120340446 | L9: 9.029554463 | M9: 11.4392754 | N9: 16.2091709 | O9: 20.61407768 | P9: 18.9162996 | Q9: 17.58400777 | R9: 18.93620514 | S9: 22.01118673 | T9: 23.71918822 | U9: 22.27831936 | V9: 23.45968181 | W9: 24.95300976
A10: 2.2 | B10: Machinery and Equipment | C10: 3.934966078 | D10: 5.28065012 | E10: 5.600462426 | F10: 5.854722386 | G10: 3.681107234 | H10: 3.288101736 | I10: 2.288551881 | J10: 3.282332754 | K10: 3.821420889 | L10: 3.636329837 | M10: 3.717198169 | N10: 3.273463474 | O10: 2.977040812 | P10: 3.163695337 | Q10: 2.997413253 | R10: 3.865595416 | S10: 8.847072787 | T10: 4.719369951 | U10: 5.210456572 | V10: 4.050798624 | W10: 4.02203808
A11: 2.3 | B11: Livestock | C11: 2.668638204 | D11: 2.984887025 | E11: 3.272166552 | F11: 3.022618809 | G11: 2.837427898 | H11: 2.639043219 | I11: 2.288937311 | J11: 1.995873557 | K11: 1.360115277 | L11: 1.753499977 | M11: 1.779120317 | N11: 1.505870507 | O11: 1.392054888 | P11: 1.329689619 | Q11: 1.174678418 | R11: 0.9867697957 | S11: 1.196846809 | T11: 1.292244159 | U11: 0.8643016351 | V11: 0.8450598265 | W11: 1.237029541
A12: 3=1+2 | B12: Domestic Demand | C12: 107.266236 | D12: 108.3176781 | E12: 111.0900662 | F12: 107.953098 | G12: 106.6130899 | H12: 111.5599108 | I12: 107.0436034 | J12: 108.9708118 | K12: 108.4063968 | L12: 107.3545806 | M12: 114.831969 | N12: 113.8006367 | O12: 112.6348005 | P12: 119.1399976 | Q12: 121.0867782 | R12: 115.116297 | S12: 127.9302089 | T12: 128.6171971 | U12: 127.321493 | V12: 126.7124288 | W12: 124.8979158
A13: 4 | B13: Net exports | C13: -7.266235995 | D13: -8.317678103 | E13: -11.09006619 | F13: -7.953097963 | G13: -6.613089934 | H13: -11.55991077 | I13: -7.04360336 | J13: -8.970811816 | K13: -8.406396805 | L13: -7.354580577 | M13: -14.83196899 | N13: -13.8006367 | O13: -12.63480052 | P13: -19.13999756 | Q13: -21.08677817 | R13: -15.11629698 | S13: -27.93020893 | T13: -28.61719706 | U13: -27.321493 | V13: -26.71242882 | W13: -24.89791577
A14: 4.1 | B14: Export of Goods and Services (FOB) | C14: 17.61614592 | D14: 18.70342572 | E14: 19.31983853 | F14: 21.03106897 | G14: 16.33024987 | H14: 11.72831112 | I14: 12.8194419 | J14: 17.05437585 | K14: 19.44329593 | L14: 18.60226698 | M14: 22.20797102 | N14: 16.05954952 | O14: 12.78800475 | P14: 18.84291224 | Q14: 23.22511742 | R14: 19.45813153 | S14: 9.522402006 | T14: 6.477891068 | U14: 8.488842156 | V14: 7.286969003 | W14: 8.828619698
A15: 4.1.1 | B15: Exports of Goods | C15: 10.73740311 | D15: 10.46039087 | E15: 10.46677642 | F15: 10.73061379 | G15: 8.81647446 | H15: 4.655928706 | I15: 4.646105597 | J15: 7.334072266 | K15: 8.905192554 | L15: 9.37459186 | M15: 10.21034951 | N15: 8.046459181 | O15: 6.22265912 | P15: 9.444141115 | Q15: 10.10322359 | R15: 8.343771944 | S15: 3.797199187 | T15: 1.513963517 | U15: 2.339157138 | V15: 3.09825585 | W15: 2.803822005
A16: 4.1.2 | B16: Exports of Services | C16: 6.878742813 | D16: 8.243034847 | E16: 8.853062113 | F16: 10.30045518 | G16: 7.513775409 | H16: 7.07238241 | I16: 8.173336305 | J16: 9.720303581 | K16: 10.53810337 | L16: 9.227675116 | M16: 11.99762151 | N16: 8.013090343 | O16: 6.565345628 | P16: 9.398771124 | Q16: 13.12189384 | R16: 11.11435958 | S16: 5.725202819 | T16: 4.963927551 | U16: 6.149685018 | V16: 4.188713153 | W16: 6.024797693
A17: 4.2 | B17: Import of Goods and Services (FOB) | C17: -24.88238192 | D17: -27.02110382 | E17: -30.40990472 | F17: -28.98416693 | G17: -22.9433398 | H17: -23.28822188 | I17: -19.86304526 | J17: -26.02518766 | K17: -27.84969273 | L17: -25.95684755 | M17: -37.03994001 | N17: -29.86018622 | O17: -25.42280527 | P17: -37.9829098 | Q17: -44.31189559 | R17: -34.57442851 | S17: -37.45261094 | T17: -34.73298279 | U17: -35.81033516 | V17: -33.99939782 | W17: -33.72653547
A18: 4.2.1 | B18: Imports of Goods | C18: -20.38524793 | D18: -22.32032491 | E18: -21.36496429 | F18: -22.07153092 | G18: -17.48619261 | H18: -17.67241276 | I18: -15.29174889 | J18: -20.97074423 | K18: -23.03562059 | L18: -21.31257604 | M18: -27.41676379 | N18: -25.02421198 | O18: -21.18481632 | P18: -31.83985889 | Q18: -37.09843807 | R18: -28.76409682 | S18: -31.53564502 | T18: -29.04793146 | U18: -29.48700248 | V18: -27.45775706 | W18: -26.97447905
A19: 4.2.2 | B19: Imports of Services | C19: -4.497133986 | D19: -4.700778907 | E19: -9.04494043 | F19: -6.912636011 | G19: -5.457147189 | H19: -5.615809118 | I19: -4.571296371 | J19: -5.05444343 | K19: -4.814072146 | L19: -4.644271516 | M19: -9.62317622 | N19: -4.835974244 | O19: -4.237988948 | P19: -6.143050909 | Q19: -7.213457527 | R19: -5.810331684 | S19: -5.916965919 | T19: -5.685051331 | U19: -6.323332683 | V19: -6.541640766 | W19: -6.752056414
A20: 5 | B20: Statistical discrepancies and Changes in inventories | C20: -3.296281158 | D20: 3.044963764 | E20: 1.348071094 | F20: 3.177022504 | G20: -0.3700277112 | H20: -1.446646856 | I20: -2.734875509 | J20: 1.111410329 | K20: 0.3434379169 | L20: -0.001985848565 | M20: 1.699305636 | N20: 3.514155295 | O20: 1.853380282 | P20: 2.946762326 | Q20: 3.598971512 | R20: -3.586177579 | S20: -0.887229938 | T20: -2.107248059 | U20: -0.945272943 | V20: -0.4960495466 | W20: -0.5570987367
A21: 6=3+4+5 | B21: GDP By Expenditure | C21: 100 | D21: 100 | E21: 100 | F21: 100 | G21: 100 | H21: 100 | I21: 100 | J21: 100 | K21: 100 | L21: 100 | M21: 100 | N21: 100 | O21: 100 | P21: 100 | Q21: 100 | R21: 100 | S21: 100 | T21: 100 | U21: 100 | V21: 100 | W21: 100
A23: 2015* - 2024* Balance of Payment Manual Six (BPM6) was used to compile the Trade Balance

Sheet Tab1.4_2013_GDP_E_Growth rates
A1: Table 1.4: Real growth rates of GDP by Expenditure approach
A3: No. | B3: Description | C3: 2005 | D3: 2006 | E3: 2007 | F3: 2008 | G3: 2009 | H3: 2010 | I3: 2011 | J3: 2012 | K3: 2013 | L3: 2014 | M3: 2015* | N3: 2016* | O3: 2017* | P3: 2018* | Q3: 2019* | R3: 2020* | S3: 2021* | T3: 2022* | U3: 2023* | V3: 2024*
A4: 1 | B4: Final Consumption Expenditure | C4: -0.008604630882 | D4: 0.01974210494 | E4: 0.02442711976 | F4: 0.05409224924 | G4: 0.1543363474 | H4: 0.05398760808 | I4: -0.1326663173 | J4: 0.04440543298 | K4: 0.03946672487 | L4: -0.002056942945 | M4: 0.008490413161 | N4: 0.008678696632 | O4: 0.08058512737 | P4: 0.09207883162 | Q4: 0.0485492882 | R4: 0.01525438913 | S4: 0.05580745991 | T4: 0.02104562527 | U4: 7.596236809 | V4: 5.172186722
A5: 1.1 | B5: Households Final Consumption Expenditures | C5: -0.01379679362 | D5: 0.01516944472 | E5: 0.05428334876 | F5: 0.06125664476 | G5: 0.1480564943 | H5: 0.04812308659 | I5: -0.1489584171 | J5: 0.04678264681 | K5: 0.03640494483 | L5: 0.003317921341 | M5: 0.008451466646 | N5: 0.003808622338 | O5: 0.09808949569 | P5: 0.09975304275 | Q5: 0.03949951383 | R5: -0.01197388214 | S5: -0.07901701961 | T5: -0.02597284701 | U5: 75.22916715 | V5: 25.08866214
A6: 1.2 | B6: General Government final consumption | C6: 0.03018901977 | D6: 0.05002762912 | E6: -0.2248747316 | F6: -0.02411548647 | G6: 0.2613055242 | H6: 0.1179956199 | I6: -0.001737535357 | J6: 0.02513017174 | K6: 0.05408596821 | L6: -0.06715909775 | M6: 0.007230951715 | N6: 0.03983765987 | O6: -0.06088576418 | P6: 0.03711449987 | Q6: 0.1461459278 | R6: 0.3130043667 | S6: 0.07618167366 | T6: 0.02224858461 | U6: 0.1641399562 | V6: 1.71200724
A7: 1.3 | B7: NPISH final consumption | C7: 0.02864351308 | D7: 0.06283052493 | E7: 0.03177643186 | F7: 0.04461641081 | G7: 0.05470290994 | H7: 0.06001252619 | I7: 0.03430891731 | J7: 0.0364863244 | K7: 0.0928370046 | L7: 0.06343197647 | M7: 0.0140425413 | N7: 0.06216198734 | O7: 0.009062958146 | P7: 0.003995477369 | Q7: 0.07069211934 | R7: -0.02687800085 | S7: -0.06271538376 | T7: 0.1829416691 | U7: 23.34315958 | V7: 1.020664659
A8: 2 | B8: Gross Fixed Capital Formation | C8: -0.1132619871 | D8: 0.03550611103 | E8: 0.01281408776 | F8: -0.03732730267 | G8: 0.02622568116 | H8: -0.06773830834 | I8: 0.06381560194 | J8: 0.07412295632 | K8: 0.04506594564 | L8: 0.01989076926 | M8: 0.3309662244 | N8: 0.3348558584 | O8: -0.01249339972 | P8: 0.01994290552 | Q8: 0.2864298416 | R8: 0.4407038652 | S8: =-8.72983728427302/100 -> -0.08729837284 | T8: 0.03597376384 | U8: 7.652372108 | V8: 9.704882213
A9: 2.1 | B9: Total Construction | C9: -0.2764774856 | D9: 0.0385564211 | E9: -0.09164257957 | F9: 0.0876384591 | G9: 0.03 | H9: 0.038 | I9: 0.092 | J9: 0.127 | K9: 0.045 | L9: 0.101859349 | M9: 0.5012949694 | N9: 0.4375192087 | O9: -0.01055167844 | P9: 0.03716652236 | Q9: 0.236133559 | R9: 0.2112541562 | S9: 0.1128418596 | T9: -0.01 | U9: 5 | V9: 5
A10: 2.2 | B10: Machinery and Equipment | C10: 0.2333430414 | D10: 0.01904408189 | E10: 0.2231779844 | F10: -0.2199870119 | G10: 0.03241604135 | H10: -0.2883445888 | I10: 0.2249401874 | J10: 0.1373929682 | K10: -0.06267647974 | L10: -0.1319724997 | M10: 0.03407472987 | N10: 0.0615442592 | O10: -0.004342497345 | P10: -0.04646782821 | Q10: 0.7240570403 | R10: 1.6155636 | S10: -0.5530663391 | T10: 0.2881219073 | U10: 20 | V10: 20
A11: 2.3 | B11: Livestock | C11: 0.05332369651 | D11: 0.05577523846 | E11: -0.04793970916 | F11: 0.02272836871 | G11: 0.004918536901 | H11: -0.00271813852 | I11: -0.2210909747 | J11: -0.2773267733 | K11: 0.3727326865 | L11: -0.0872747976 | M11: -0.142354822 | N11: -0.1324071886 | O11: -0.07121819889 | P11: -0.1037540971 | Q11: -0.04777538646 | R11: 0.002979029101 | S11: =23.5844543324658/100 -> 0.2358445433 | T11: 0.04989115567 | U11: 0.2953207743 | V11: 69.81787512
A12: 3=1+2 | B12: Domestic Demand | C12: -0.02529338011 | D12: 0.02202897787 | E12: 0.02272021017 | F12: 0.04078534966 | G12: 0.1370882751 | H12: 0.03919696606 | I12: -0.1112489279 | J12: 0.04828285232 | K12: 0.04021529633 | L12: 0.0008909750157 | M12: 0.05262612833 | N12: 0.06512551429 | O12: 0.06039825677 | P12: 0.07750941673 | Q12: 0.0940275886 | R12: 0.1108969313 | S12: 0.009402140374 | T12: 0.02496271794 | U12: 0.2 | V12: 0.2
A13: 4 | B13: Net exports | C13: 0.0454382552 | D13: 0.2555979268 | E13: -0.05748551114 | F13: 0.3849853213 | G13: 0.9385278128 | H13: -0.3640126227 | I13: 0.1358219808 | J13: -0.1427561246 | K13: -0.1780348536 | L13: 0.554155477 | M13: 0.2132921064 | N13: 0.1196401483 | O13: 0.3518376064 | P13: 0.0377562309 | Q13: 0.0759308103 | R13: 0.8183672657 | S13: -0.1157262274 | T13: 0.09024192787 | U13: 0.13 | V13: 17.07208786
A14: 4.1 | B14: Export of Goods and Services (FOB) | C14: -0.03197552811 | D14: 0.03750899701 | E14: 0.138623634 | F14: -0.1731806145 | G14: -0.2053185859 | H14: 0.1577659786 | I14: 0.1158308693 | J14: 0.1852934969 | K14: -0.03974133392 | L14: 0.1085218249 | M14: -0.2346011397 | N14: -0.1261166123 | O14: 0.5107687162 | P14: 0.3449536924 | Q14: -0.06334379135 | R14: -0.4993906439 | S14: -0.2715771378 | T14: 0.6830978015 | U14: 19.90875358 | V14: 17.50435069
A15: 4.1.1 | B15: Exports of Goods | C15: -0.09328019796 | D15: -0.01758202503 | E15: 0.06247169994 | F15: -0.1386627033 | G15: -0.4289982061 | H15: 0.07919376183 | I15: 0.3642380983 | J15: 0.2835088192 | K15: 0.1096938933 | L15: 0.03745130926 | M15: -0.1758299236 | N15: -0.1836251391 | O15: 0.510698029 | P15: 0.1417260501 | Q15: -0.104595832 | R15: -0.5412754917 | S15: -0.5984416184 | T15: -0.05647092948 | U15: 79.52045775 | V15: -18.60974455
A16: 4.1.2 | B16: Exports of Services | C16: 0.04942731968 | D16: 0.1007134394 | E16: 0.2166012124 | F16: -0.2040481842 | G16: 0.01113800981 | H16: 0.200703844 | I16: -0.006180190419 | J16: 0.1190723438 | K16: -0.1553023031 | L16: 0.1807238767 | M16: -0.2870630534 | N16: -0.06677253073 | O16: 0.510832526 | P16: 0.5283925748 | Q16: -0.03552866451 | R16: -0.4731712689 | S16: -0.09341491728 | T16: -0.01730052305 | U16: -6.406323914 | V16: 48.08292945
A17: 4.2 | B17: Import of Goods and Services (FOB) | C17: -0.01608157907 | D17: 0.08508483445 | E17: 0.08911994509 | F17: -0.05124926824 | G17: 0.1594461085 | H17: -0.1204312635 | I17: 0.1235378134 | J17: 0.0574415386 | K17: -0.08343492078 | L17: 0.234787104 | M17: -0.07487247695 | N17: -0.0111749202 | O17: 0.4266020707 | P17: 0.1907941548 | Q17: -0.002434526619 | R17: 0.1221792891 | S17: -0.1524575819 | T17: -0.0109 | U17: 14.54057284 | V17: 17.17427567
A18: 4.2.1 | B18: Imports of Goods | C18: 0.006287323357 | D18: -0.08027469498 | E18: 0.2087528836 | F18: -0.01713816318 | G18: 0.168122946 | H18: -0.1152602267 | I18: 0.1712503252 | J18: 0.07313496568 | K18: -0.08864590842 | L18: 0.09234866938 | M18: 0.07177682058 | N18: -0.01184491559 | O18: 0.4081422724 | P18: 0.1726485541 | Q18: -0.000357486335 | R18: 0.1540269747 | S18: -0.1818583016 | T18: -0.04515140529 | U18: 11.97287036 | V18: 19.90008935
A19: 4.2.2 | B19: Imports of Services | C19: -0.09215946322 | D19: 0.7084684869 | E19: -0.1536685566 | F19: -0.1501205536 | G19: 0.1303609788 | H19: -0.1383438612 | I19: -0.04616724225 | J19: -0.0111006212 | K19: -0.0587368929 | L19: 0.8884375115 | M19: -0.4641479099 | N19: -0.007617720422 | O19: 0.5241930106 | P19: 0.2794200158 | Q19: -0.01173251012 | R19: -0.02202956917 | S19: 0.004637380695 | T19: 0.04484888966 | U19: 26.11431704 | V19: 6.26555639
A20: 5 | B20: Statistical discrepancies and Changes in inventories
A21: 6=3+4+5 | B21: GDP By Expenditure | C21: ='Tab 1.2_2013_GDP_E_Constant'!D25/'Tab 1.2_2013_GDP_E_Constant'!C25-1 -> -0.02351729492 | D21: ='Tab 1.2_2013_GDP_E_Constant'!E25/'Tab 1.2_2013_GDP_E_Constant'!D25-1 -> -0.0055558088 | E21: ='Tab 1.2_2013_GDP_E_Constant'!F25/'Tab 1.2_2013_GDP_E_Constant'!E25-1 -> 0.03043249415 | F21: ='Tab 1.2_2013_GDP_E_Constant'!G25/'Tab 1.2_2013_GDP_E_Constant'!F25-1 -> 0.06255905613 | G21: ='Tab 1.2_2013_GDP_E_Constant'!H25/'Tab 1.2_2013_GDP_E_Constant'!G25-1 -> 0.06665724237 | H21: ='Tab 1.2_2013_GDP_E_Constant'!I25/'Tab 1.2_2013_GDP_E_Constant'!H25-1 -> 0.05908335867 | I21: ='Tab 1.2_2013_GDP_E_Constant'!J25/'Tab 1.2_2013_GDP_E_Constant'!I25-1 -> -0.08130444281 | J21: ='Tab 1.2_2013_GDP_E_Constant'!K25/'Tab 1.2_2013_GDP_E_Constant'!J25-1 -> 0.05241569304 | K21: ='Tab 1.2_2013_GDP_E_Constant'!L25/'Tab 1.2_2013_GDP_E_Constant'!K25-1 -> 0.02872768717 | L21: ='Tab 1.2_2013_GDP_E_Constant'!M25/'Tab 1.2_2013_GDP_E_Constant'!L25-1 -> -0.0140738252 | M21: ='Tab 1.2_2013_GDP_E_Constant'!N25/'Tab 1.2_2013_GDP_E_Constant'!M25-1 -> 0.04058073854 | N21: ='Tab 1.2_2013_GDP_E_Constant'!O25/'Tab 1.2_2013_GDP_E_Constant'!N25-1 -> 0.01943359718 | O21: ='Tab 1.2_2013_GDP_E_Constant'!P25/'Tab 1.2_2013_GDP_E_Constant'!O25-1 -> 0.04822611213 | P21: ='Tab 1.2_2013_GDP_E_Constant'!Q25/'Tab 1.2_2013_GDP_E_Constant'!P25-1 -> 0.07234890405 | Q21: ='Tab 1.2_2013_GDP_E_Constant'!R25/'Tab 1.2_2013_GDP_E_Constant'!Q25-1 -> 0.06222052994 | R21: ='Tab 1.2_2013_GDP_E_Constant'!S25/'Tab 1.2_2013_GDP_E_Constant'!R25-1 -> 0.005914873691 | S21: ='Tab 1.2_2013_GDP_E_Constant'!T25/'Tab 1.2_2013_GDP_E_Constant'!S25-1 -> 0.05255968789 | T21: ='Tab 1.2_2013_GDP_E_Constant'!U25/'Tab 1.2_2013_GDP_E_Constant'!T25-1 -> 0.0549299825 | U21: 0.05038239707 | V21: 0.05333610003
A23: 2015* - 2024* Balance of Payment Manual Six (BPM6) was used to compile the Trade Balance

Sheet Tab1.5_2013_GDP_E_Deflators
A1: Table 1.5: Deflators of GDP by Expenditure approach
A3: No. | B3: Description | C3: 2004 | D3: 2005 | E3: 2006 | F3: 2007 | G3: 2008 | H3: 2009 | I3: 2010 | J3: 2011 | K3: 2012 | L3: 2013 | M3: 2014 | N3: 2015* | O3: 2016* | P3: 2017* | Q3: 2018* | R3: 2019* | S3: 2020* | T3: 2021* | U3: 2022* | V3: 2023* | W3: 2024*
A4: 1 | B4: Final Consumption Expenditure | C4: 72.04820133 | D4: 70.57286412 | E4: 72.33953224 | F4: 72.75162247 | G4: 78.64765478 | H4: 81.65337323 | I4: 85.24992873 | J4: 90.46180877 | K4: 94.34272681 | L4: 100 | M4: 105.5261167 | N4: 111.6827882 | O4: 118.2414579 | P4: 128.006936 | Q4: 136.4843873 | R4: 145.8698782 | S4: 150.942797 | T4: 168.1213744 | U4: 187.6407269 | V4: 200.1486662 | W4: 209.4524416
A5: 1.1 | B5: Households Final Consumption Expenditures | C5: 72.12927832 | D5: 70.14998519 | E5: 71.92832699 | F5: 72.00318717 | G5: 78.26300766 | H5: 81.2757756 | I5: 84.87292859 | J5: 90.23541465 | K5: 94.2013887 | L5: 100 | M5: 105.6302978 | N5: 111.7167773 | O5: 118.2069186 | P5: 128.2148892 | Q5: 138.016682 | R5: 146.2920878 | S5: 154.4743461 | T5: 170.1248408 | U5: 171.8260893 | V5: 173.5443502 | W5: 175.2797937
A6: 1.2 | B6: General Government final consumption | C6: 68.04312307 | D6: 70.19199231 | E6: 71.63549303 | F6: 75.48169918 | G6: 78.83584541 | H6: 82.4342436 | I6: 86.59421839 | J6: 90.74746865 | K6: 94.60815817 | L6: 100 | M6: 105.9479994 | N6: 113.1614212 | O6: 121.3416257 | P6: 131.0904422 | Q6: 125.763869 | R6: 149.5750538 | S6: 127.7436993 | T6: 168.0695684 | U6: 189.9217485 | V6: 206.072731 | W6: 218.3614499
A7: 1.3 | B7: NPISH final consumption | C7: 87.78466182 | D7: 89.85399425 | E7: 91.89092735 | F7: 93.15265404 | G7: 93.7584403 | H7: 95.35762878 | I7: 96.20006732 | J7: 97.50593766 | K7: 98.44963682 | L7: 100 | M7: 100.6822593 | N7: 105.5885822 | O7: 109.0672682 | P7: 111.5665867 | Q7: 114.3086443 | R7: 118.2419419 | S7: 129.6164775 | T7: 161.245689 | U7: 164.4706028 | V7: 167.7600148 | W7: 171.1152151
A8: 2 | B8: Gross Fixed Capital Formation | C8: 70.58888281 | D8: 73.41748484 | E8: 76.57527227 | F8: 76.29953713 | G8: 76.78191158 | H8: 78.78278877 | I8: 83.92970645 | J8: 87.60825862 | K8: 92.90895517 | L8: 100 | M8: 115.1275813 | N8: 120.6850143 | O8: 121.6931732 | P8: 123.6822521 | Q8: 126.4697132 | R8: 131.0207215 | S8: 122.6344814 | T8: 142.6103273 | U8: 148.9333007 | V8: 159.7792734 | W8: 177.4150802
A9: 2.1 | B9: Total Construction | C9: 68.31008086 | D9: 70.46738089 | E9: 71.9160409 | F9: 75.79636606 | G9: 79.14309632 | H9: 82.78367876 | I9: 86.92286269 | J9: 90.74746865 | K9: 94.60815817 | L9: 100 | M9: 114.9437496 | N9: 122.1353959 | O9: 122.1833806 | P9: 121.3736779 | Q9: 122.0751433 | R9: 129.6251225 | S9: 124.4866735 | T9: 137.9442389 | U9: 148.4728328 | V9: 171.9538478 | W9: 199.1483911
A10: 2.2 | B10: Machinery and Equipment | C10: 73.69400817 | D10: 76.50396975 | E10: 81.55345673 | F10: 73.66299037 | G10: 66.95565181 | H10: 65.28514151 | I10: 72.385355 | J10: 78.32532255 | K10: 88.29145784 | L10: 100 | M10: 117.7330209 | N10: 112.8750811 | O10: 109.3499026 | P10: 125.0119449 | Q10: 139.3919417 | R10: 127.0890294 | S10: 111.287 | T10: 152 | U10: 147.7999875 | V10: 110.5789688 | W10: 104.6044589
A11: 2.3 | B11: Livestock | C11: 75.53567919 | D11: 76.52754182 | E11: 81.3895549 | F11: 83.45769954 | G11: 86.3803839 | H11: 90.09921654 | I11: 88.83438278 | J11: 91.90475913 | K11: 95.4384765 | L11: 100 | M11: 111.1319255 | N11: 123.4734052 | O11: 148.7672568 | P11: 163.8780517 | Q11: 181.2724722 | R11: 194.9133401 | S11: 235.8798724 | T11: 235.8255447 | U11: 170.4367893 | V11: 191.875403 | W11: 189.0958079
A12: 3=1+2 | B12: Domestic Demand | C12: 71.81549718 | D12: 70.98553118 | E12: 72.96211084 | F12: 73.26805187 | G12: 78.39646201 | H12: 81.30457498 | I12: 85.10601872 | J12: 90.08948937 | K12: 94.1510429 | L12: 100 | M12: 106.840223 | N12: 113.2406748 | O12: 118.9900659 | P12: 127.1334722 | Q12: 134.5697695 | R12: 142.5317354 | S12: 142.6896781 | T12: 169.5474776 | U12: 189.1300599 | V12: 189.4379743 | W12: 200.6862835
A13: 4 | B13: Net exports | C13: 98.87102495 | D13: 103.2886351 | E13: 112.3437347 | F13: 90.33940462 | G13: 61.1600342 | H13: 62.15281594 | I13: 67.50614735 | J13: 69.95430249 | K13: 84.21179941 | L13: 100 | M13: 129.7256221 | N13: 112.0006731 | O13: 103.5601279 | P13: 124.301039 | Q13: 148.0871236 | R13: 120.2597762 | S13: 122.2886103 | T13: 160.0956743 | U13: 184.0852026 | V13: 183.975915 | W13: 167.459815
A14: 4.1 | B14: Export of Goods and Services (FOB) | C14: 61.92800592 | D14: 64.80377415 | E14: 66.08541794 | F14: 66.77248054 | G14: 70.71082611 | H14: 72.01957882 | I14: 77.0821879 | J14: 84.93112851 | K14: 89.96214823 | L14: 100 | M14: 107.6658785 | N14: 114.5182445 | O14: 117.9972186 | P14: 123.2685365 | Q14: 126.7722909 | R14: 138.2100391 | S14: 135.2086447 | T14: 144.4993239 | U14: 196.0857199 | V14: 162.1093458 | W14: 191.0967835
A15: 4.1.1 | B15: Exports of Goods | C15: 66.17328706 | D15: 67.83401809 | E15: 70.76706052 | F15: 72.16715931 | G15: 77.62548318 | H15: 80.90833903 | I15: 84.81393498 | J15: 90.69381489 | K15: 94.48474834 | L15: 100 | M15: 104.9542051 | N15: 112.9814472 | O15: 121.0235397 | P15: 130.2302461 | Q15: 136.9357942 | R15: 153.9403911 | S15: 152.8340247 | T15: 173.6525561 | U15: 176.4333982 | V15: 150.3277799 | W15: 191.0967835
A16: 4.1.2 | B16: Exports of Services | C16: 56.29094801 | D16: 61.32725707 | E16: 61.29153902 | F16: 61.94830034 | G16: 64.01945599 | H16: 67.16208078 | I16: 73.28455827 | J16: 81.0456682 | K16: 86.46473961 | L16: 100 | M16: 110.0864439 | N16: 116.1040933 | O16: 115.2653345 | P16: 116.9847051 | Q16: 119.9193176 | R16: 128.3630414 | S16: 125.601676 | T16: 137.4609112 | U16: 204.7610695 | V16: 172.0850502 | W16: 191.0967835
A17: 4.2 | B17: Import of Goods and Services (FOB) | C17: 69.51283691 | D17: 73.19920023 | E17: 77.76237122 | F17: 71.920675 | G17: 67.66514472 | H17: 66.75890655 | I17: 73.39044674 | J17: 79.09415626 | K17: 88.14533595 | L17: 100 | M17: 115.5328722 | N17: 113.3407635 | O17: 110.3516324 | P17: 123.7866726 | Q17: 136.0939531 | R17: 129.7431245 | S17: 125.3336381 | T17: 156.9365064 | U17: 186.7951424 | V17: 178.8066134 | W17: 173.0633832
A18: 4.2.1 | B18: Imports of Goods | C18: 73.69400817 | D18: 76.50396975 | E18: 81.55345673 | F18: 73.66299037 | G18: 66.95565181 | H18: 65.28514151 | I18: 72.385355 | J18: 78.32532255 | K18: 88.29145784 | L18: 100 | M18: 117.7330209 | N18: 112.8750811 | O18: 109.3499026 | P18: 125.0119449 | Q18: 139.3919417 | R18: 131.7772129 | S18: 125.2834742 | T18: 161.4122711 | U18: 187.9350481 | V18: 180.4861625 | W18: 169.0697053
A19: 4.2.2 | B19: Imports of Services | C19: 55.29244034 | D19: 60.74065428 | E19: 70.06857063 | F19: 66.87056126 | G19: 70.04339521 | H19: 71.86406452 | I19: 76.96538218 | J19: 82.45209222 | K19: 87.45277578 | L19: 100 | M19: 109.6926543 | N19: 115.8132063 | O19: 115.6474516 | P19: 117.8022572 | Q19: 121.3303284 | R19: 120.5326101 | S19: 125.601676 | T19: 137.4609112 | U19: 181.657095 | V19: 172.0850502 | W19: 191.0967835
A20: 5 | B20: Statistical discrepancies and Changes in inventories
A21: 6=3+4+5 | B21: GDP By Expenditure | C21: ='Tab1.1_2013_GDP_E_Current'!C25/'Tab 1.2_2013_GDP_E_Constant'!C25*100 -> 69.76426846 | D21: ='Tab1.1_2013_GDP_E_Current'!D25/'Tab 1.2_2013_GDP_E_Constant'!D25*100 -> 72.63423458 | E21: ='Tab1.1_2013_GDP_E_Current'!E25/'Tab 1.2_2013_GDP_E_Constant'!E25*100 -> 73.58080672 | F21: ='Tab1.1_2013_GDP_E_Current'!F25/'Tab 1.2_2013_GDP_E_Constant'!F25*100 -> 76.82927076 | G21: ='Tab1.1_2013_GDP_E_Current'!G25/'Tab 1.2_2013_GDP_E_Constant'!G25*100 -> 78.7314449 | H21: ='Tab1.1_2013_GDP_E_Current'!H25/'Tab 1.2_2013_GDP_E_Constant'!H25*100 -> 82.28483544 | I21: ='Tab1.1_2013_GDP_E_Current'!I25/'Tab 1.2_2013_GDP_E_Constant'!I25*100 -> 86.92926381 | J21: ='Tab1.1_2013_GDP_E_Current'!J25/'Tab 1.2_2013_GDP_E_Constant'!J25*100 -> 90.90377711 | K21: ='Tab1.1_2013_GDP_E_Current'!K25/'Tab 1.2_2013_GDP_E_Constant'!K25*100 -> 94.39917306 | L21: ='Tab1.1_2013_GDP_E_Current'!L25/'Tab 1.2_2013_GDP_E_Constant'!L25*100 -> 100 | M21: ='Tab1.1_2013_GDP_E_Current'!M25/'Tab 1.2_2013_GDP_E_Constant'!M25*100 -> 105.2117233 | N21: ='Tab1.1_2013_GDP_E_Current'!N25/'Tab 1.2_2013_GDP_E_Constant'!N25*100 -> 115.4386839 | O21: ='Tab1.1_2013_GDP_E_Current'!O25/'Tab 1.2_2013_GDP_E_Constant'!O25*100 -> 124.4667078 | P21: ='Tab1.1_2013_GDP_E_Current'!P25/'Tab 1.2_2013_GDP_E_Constant'!P25*100 -> 129.347942 | Q21: ='Tab1.1_2013_GDP_E_Current'!Q25/'Tab 1.2_2013_GDP_E_Constant'!Q25*100 -> 138.3399056 | R21: ='Tab1.1_2013_GDP_E_Current'!R25/'Tab 1.2_2013_GDP_E_Constant'!R25*100 -> 146.9892021 | S21: ='Tab1.1_2013_GDP_E_Current'!S25/'Tab 1.2_2013_GDP_E_Constant'!S25*100 -> 150.2064415 | T21: ='Tab1.1_2013_GDP_E_Current'!T25/'Tab 1.2_2013_GDP_E_Constant'!T25*100 -> 161.2948655 | U21: 175.6258173 | V21: 190.9523506 | W21: 211.1156266
A23: 2015* - 2024* Balance of Payment Manual Six (BPM6) was used to compile the Trade Balance
